fUST/lending_fUST_20240920
["ID","MTS","AMOUNT","RATE_DAILY","PERIOD"]
[338611526,1726792241694,-500.0,0.0001769,2]
[338611527,1726792241703,-500.0,0.0001769,2]
[338611528,1726792241713,-237.72804819,0.0001769,2]
[338611529,1726792241722,-74900.2594263,0.00017691,5]
[338611530,1726792241732,-192791.075515,0.00017691,2]
[338611531,1726792241742,-14778.5492939,0.00017691,2]
[338611532,1726792241752,-44978.46185856,0.00017692,2]
[338611572,1726792274618,542.0,0.00017693,120]
[338611573,1726792275071,542.0,0.00017683,120]
[338611574,1726792275639,542.0,0.00017673,120]
[338611575,1726792276156,542.0,0.0002219,120]
[338611576,1726792276688,542.0,0.0002218,120]
[338611577,1726792277155,542.0,0.0002217,120]
[338611581,1726792311667,1000.0,0.00023,120]
[338611582,1726792313032,1000.0,0.00023,120]
[338611583,1726792314191,1000.0,0.00023,120]
[338611584,1726792315154,1000.0,0.00023,120]
[338611585,1726792347915,509.25197624,0.00023,120]
[338611589,1726792394519,217.0,0.00017692,120]
[338611590,1726792395220,217.0,0.00017682,120]
[338611591,1726792395438,217.0,0.00017672,120]
[338611592,1726792395896,217.0,0.0002179,120]
[338611593,1726792396410,217.0,0.0002178,120]
[338611594,1726792396816,217.0,0.0002177,120]
[338611601,1726792514524,150.5,0.00017681,120]
[338611602,1726792514977,150.5,0.00017671,120]
[338611603,1726792515519,150.5,0.00017661,120]
[338611604,1726792516560,150.5,0.0001999,120]
[338611605,1726792517040,270.86,0.0001998,120]
[338611618,1726793121945,350.0,0.00014,4]
[338611620,1726793206838,400.0,0.00014013,3]
[338611623,1726793368144,-291.74453432,0.00015034,2]
[338611630,1726793409155,328.0,0.00023,120]
[338611655,1726793432734,-300.0,0.00015034,2]
[338611656,1726793432744,-281.97056146,0.00015034,2]
[338611657,1726793432756,-18.02943854,0.00015034,2]
[338611658,1726793432767,-1457.54346223,0.00015035,2]
[338611661,1726793438499,-2500.0,0.00015035,2]
[338611662,1726793438512,-2414.40008246,0.00015035,2]
[338611663,1726793438527,-2840.31324716,0.00015035,2]
[338611664,1726793438607,-15687.74320815,0.00015035,2]
[338611665,1726793438619,-250.0,0.00015075,2]
[338611666,1726793438629,-200.0,0.00015792,2]
[338611667,1726793438638,-200.0,0.00015836,2]
[338611668,1726793438649,-200.0,0.00015879,2]
[338611669,1726793438660,-200.0,0.00015922,2]
[338611670,1726793438669,-4193.00543734,0.00015952,2]
[338611671,1726793438678,-200.0,0.00015965,2]
[338611672,1726793438687,-200.0,0.00016009,2]
[338611673,1726793438697,-200.0,0.00016052,2]
[338611674,1726793438706,-3000.0,0.00016083,2]
[338611675,1726793438716,-200.0,0.00016095,2]
[338611676,1726793438726,-200.0,0.00016139,2]
[338611677,1726793438735,-200.0,0.00016182,2]
[338611678,1726793438745,-200.0,0.00016225,2]
[338611679,1726793438754,-200.0,0.00016269,2]
[338611680,1726793438763,-200.0,0.00016312,2]
[338611681,1726793438773,-200.0,0.00016355,2]
[338611682,1726793438782,-200.0,0.00016399,2]
[338611683,1726793438792,-200.0,0.00016442,2]
[338611684,1726793438801,-420.0,0.00016454,2]
[338611685,1726793438811,-200.0,0.00016485,2]
[338611686,1726793438821,-200.0,0.00016529,2]
[338611687,1726793438830,-420.0,0.00016538,2]
[338611688,1726793438839,-200.0,0.00016572,2]
[338611689,1726793438851,-850.0,0.0001658,2]
[338611690,1726793438862,-200.0,0.00016615,2]
[338611691,1726793438871,-615.1843422,0.0001691,2]
[338611692,1726793438880,-2475.3382309,0.00017274,2]
[338611693,1726793438893,-1938.63892331,0.00017274,2]
[338611705,1726793440633,-39.19140856,0.00016083,2]
[338611706,1726793440661,-3318.0438548,0.00016083,2]
[338611707,1726793440670,-1847.03343816,0.00017274,2]
[338611708,1726793440679,-615.1843422,0.0001741,2]
[338611709,1726793440688,-153.0,0.00017427,2]
[338611710,1726793440697,-153.0,0.00017427,2]
[338611711,1726793440707,-153.0,0.00017427,2]
[338611712,1726793440716,-153.0,0.00017427,2]
[338611713,1726793440725,-306.0,0.00017427,2]
[338611714,1726793440735,-306.0,0.00017475,2]
[338611715,1726793440743,-208.7923626,0.00017534,2]
[338611716,1726793440753,-208.7923626,0.00017534,2]
[338611717,1726793440762,-153.0,0.00017534,2]
[338611718,1726793440771,-208.7923626,0.00017534,2]
[338611719,1726793440780,-208.7923626,0.00017534,2]
[338611720,1726793440790,-153.0,0.00017534,2]
[338611721,1726793440799,-208.7923626,0.00017534,2]
[338611722,1726793440811,-417.5318216,0.00017534,2]
[338611723,1726793440821,-153.0,0.00017534,2]
[338611724,1726793440831,-153.0,0.00017534,2]
[338611725,1726793440841,-153.0,0.00017534,2]
[338611726,1726793440852,-153.0,0.00017534,2]
[338611727,1726793440863,-153.0,0.00017534,2]
[338611728,1726793440873,-153.0,0.00017534,2]
[338611729,1726793440883,-1641.55885605,0.00017572,2]
[338611730,1726793440894,-1000.0,0.0001758,2]
[338611731,1726793440905,-5015.12402546,0.0001759,2]
[338611732,1726793440916,-19087.16,0.000176,2]
[338611733,1726793440928,-422.80692518,0.000176,4]
[338611734,1726793440939,-500.0,0.0001766,2]
[338611735,1726793440949,-500.0,0.0001766,2]
[338611736,1726793440959,-500.0,0.0001766,2]
[338611737,1726793440968,-237.72804819,0.0001766,2]
[338611738,1726793440978,-500.0,0.0001766,2]
[338611739,1726793440987,-244.89069988,0.0001766,2]
[338611740,1726793440996,-500.0,0.0001766,2]
[338611741,1726793441006,-500.0,0.0001766,2]
[338611742,1726793441015,-500.0,0.0001766,2]
[338611743,1726793441026,-500.0,0.0001766,2]
[338611744,1726793441038,-500.0,0.0001766,2]
[338611745,1726793441047,-500.0,0.0001766,2]
[338611746,1726793441057,-500.0,0.0001766,2]
[338611747,1726793441067,-500.0,0.0001766,2]
[338611748,1726793441076,-500.0,0.0001766,2]
[338611749,1726793441086,-500.0,0.0001766,2]
[338611750,1726793441095,-500.0,0.0001766,2]
[338611751,1726793441104,-500.0,0.0001766,2]
[338611752,1726793441113,-500.0,0.0001766,2]
[338611753,1726793441123,-500.0,0.0001766,2]
[338611754,1726793441132,-500.0,0.0001766,2]
[338611755,1726793441141,-200.0,0.0001766,2]
[338611756,1726793441151,-500.0,0.0001766,2]
[338611757,1726793441160,-500.0,0.0001766,2]
[338611758,1726793441169,-500.0,0.0001766,2]
[338611759,1726793441178,-500.0,0.0001766,2]
[338611760,1726793441187,-500.0,0.0001766,2]
[338611761,1726793441196,-500.0,0.0001766,2]
[338611762,1726793441205,-500.0,0.0001766,2]
[338611763,1726793441214,-500.0,0.0001766,2]
[338611764,1726793441224,-500.0,0.0001766,2]
[338611765,1726793441233,-500.0,0.0001766,2]
[338611766,1726793441242,-500.0,0.0001766,2]
[338611767,1726793441251,-500.0,0.0001766,2]
[338611768,1726793441261,-500.0,0.0001766,2]
[338611769,1726793441270,-500.0,0.0001766,2]
[338611770,1726793441279,-500.0,0.0001766,2]
[338611771,1726793441288,-500.0,0.0001766,2]
[338611772,1726793441297,-500.0,0.0001766,2]
[338611773,1726793441306,-500.0,0.0001766,2]
[338611774,1726793441316,-500.0,0.0001766,2]
[338611775,1726793441326,-600.63993761,0.0001766,2]
[338611776,1726793441335,-524.70968124,0.0001766,2]
[338611777,1726793441344,-500.0,0.0001766,2]
[338611778,1726793441357,-500.0,0.0001766,2]
[338611779,1726793441366,-160.02586601,0.0001766,2]
[338611780,1726793441376,-500.0,0.0001766,2]
[338611781,1726793441385,-500.0,0.0001766,2]
[338611782,1726793441394,-500.0,0.0001766,2]
[338611783,1726793441403,-500.0,0.0001766,2]
[338611784,1726793441413,-500.0,0.0001766,2]
[338611785,1726793441422,-500.0,0.0001766,2]
[338611786,1726793441431,-500.0,0.0001766,2]
[338611787,1726793441441,-500.0,0.0001766,2]
[338611788,1726793441450,-500.0,0.0001766,2]
[338611789,1726793441459,-500.0,0.0001766,2]
[338611790,1726793441468,-500.0,0.0001766,2]
[338611791,1726793441478,-500.0,0.0001766,2]
[338611792,1726793441487,-500.0,0.0001766,2]
[338611793,1726793441497,-500.0,0.0001766,2]
[338611794,1726793441506,-500.0,0.0001766,2]
[338611795,1726793441515,-500.0,0.0001766,2]
[338611796,1726793441525,-500.0,0.0001766,2]
[338611797,1726793441534,-500.0,0.0001766,2]
[338611798,1726793441543,-336.07885347,0.0001766,2]
[338611799,1726793441553,-499.99999999,0.0001766,2]
[338611800,1726793441562,-48197.7688787,0.0001766,2]
[338611801,1726793441575,-2955.7098589,0.0001766,2]
[338611802,1726793441584,-74900.2594263,0.0001766,5]
[338611803,1726793441594,-17592.94314137,0.0001766,5]
[338611804,1726793441603,-96395.5377575,0.0001766,2]
[338611805,1726793441612,-5911.4197178,0.0001766,2]
[338611806,1726793441621,-51378.90495144,0.00017661,2]
[338611807,1726793441634,-1700.42206391,0.00017661,2]
[338611830,1726793446561,-299.111126,0.00017661,2]
[338611831,1726793446575,-4649.99999994,0.00017661,2]
[338611881,1726794546686,555.0,0.00023,120]
[338611882,1726794554547,555.0,0.00023,120]
[338611883,1726794564062,555.0,0.00023,120]
[338611884,1726794582689,488.0,0.00023,120]
[338611969,1726794639787,-250.0,0.00016157,2]
[338611972,1726794639799,-500.0,0.0001691,2]
[338611973,1726794639811,-300.0,0.00016944,2]
[338611974,1726794639821,-300.0,0.00016944,2]
[338611975,1726794639832,-24900.0,0.00016945,2]
[338611976,1726794639841,-911.90450258,0.0001725,2]
[338611977,1726794639853,-500.0,0.0001741,2]
[338611978,1726794639868,-3668.87975769,0.0001745,2]
[338611979,1726794639878,-153.0,0.000175,2]
[338611980,1726794639890,-153.0,0.000175,2]
[338611981,1726794639902,-7138.03841527,0.00017518,2]
[338611982,1726794639913,-1000.0,0.0001755,2]
[338611983,1726794639925,-1477.40297049,0.00017571,2]
[338611984,1726794639936,-10126.67930541,0.00017571,2]
[338612085,1726795230504,948.0,0.00023,120]
[338612104,1726795619137,-231.43814114,0.0001549,2]
[338612190,1726795838285,-300.0,0.0001549,2]
[338612191,1726795838300,-300.0,0.0001549,2]
[338612192,1726795838310,-24900.0,0.00015491,2]
[338612193,1726795838320,-2392.64175633,0.00015513,2]
[338612194,1726795838330,-3697.89993599,0.00015883,2]
[338612195,1726795838340,-3000.0,0.00015937,2]
[338612196,1726795838349,-159.090909,0.00015983,2]
[338612197,1726795838359,-159.090909,0.00016066,2]
[338612198,1726795838369,-159.090909,0.00016149,2]
[338612199,1726795838378,-159.090909,0.00016233,2]
[338612200,1726795838388,-159.090909,0.00016316,2]
[338612201,1726795838397,-159.090909,0.00016399,2]
[338612202,1726795838407,-159.090909,0.00016483,2]
[338612203,1726795838417,-159.090909,0.00016566,2]
[338612204,1726795838426,-159.090909,0.00016649,2]
[338612205,1726795838436,-1475.57290077,0.000167,2]
[338612206,1726795838445,-479.4199926,0.00016703,2]
[338612212,1726795840076,-10.0133562,0.00016703,2]
[338612213,1726795840095,-159.090909,0.00016732,2]
[338612214,1726795840118,-186.27541554,0.00016778,2]
[338612217,1726795840139,-212.42333256,0.00016778,2]
[338612219,1726795840157,-500.0,0.00016815,2]
[338612220,1726795840175,-159.090909,0.00016816,2]
[338612221,1726795840194,-420.0,0.00016945,2]
[338612222,1726795840211,-308.8108868,0.00016978,2]
[338612223,1726795840229,-153.0,0.00016978,2]
[338612224,1726795840244,-153.0,0.00016978,2]
[338612225,1726795840258,-212.7901906,0.00016978,2]
[338612226,1726795840274,-306.0,0.00017,2]
[338612227,1726795840294,-420.0,0.00017039,2]
[338612228,1726795840310,-500.0,0.00017315,2]
[338612229,1726795840323,-153.0,0.00017427,2]
[338612230,1726795840339,-6280.78896416,0.00017497,2]
[338612231,1726795840355,-150.0,0.000175,2]
[338612232,1726795840371,-1000.0,0.00017538,2]
[338612233,1726795840389,-672.86116389,0.00017551,2]
[338612234,1726795840402,-500.0,0.00017582,2]
[338612235,1726795840422,-8892.73528495,0.00017598,5]
[338612236,1726795840438,-7618.47112057,0.00017598,2]
[338612237,1726795840453,-1012.63685709,0.000176,2]
[338612238,1726795840468,-150.112233,0.000176,2]
[338612239,1726795840483,-150.112233,0.000176,2]
[338612240,1726795840500,-150.112233,0.000176,2]
[338612241,1726795840516,-150.112233,0.000176,2]
[338612242,1726795840531,-150.112233,0.000176,2]
[338612243,1726795840548,-150.112233,0.000176,2]
[338612244,1726795840563,-400.07110418,0.00017617,2]
[338612245,1726795840577,-500.0,0.00017617,2]
[338612246,1726795840592,-300.0,0.00017617,2]
[338612247,1726795840608,-500.0,0.00017617,2]
[338612248,1726795840622,-500.0,0.00017617,2]
[338612249,1726795840637,-500.0,0.00017617,2]
[338612250,1726795840650,-186.07885347,0.00017617,2]
[338612251,1726795840665,-18011.85498747,0.00017618,2]
[338612252,1726795840861,-22623.77189993,0.00017618,2]
[338612253,1726795840875,-2512.35338009,0.00017618,2]
[338612254,1726795840888,-45049.13261557,0.00017618,5]
[338612256,1726795840902,-203178.134437,0.00017618,2]
[338612257,1726795840915,-12561.7669005,0.00017618,2]
[338612258,1726795840930,-151.288404,0.00017621,2]
[338612259,1726795840944,-151.0,0.00017621,2]
[338612260,1726795840957,-40635.6268874,0.00017622,2]
[338612261,1726795840972,-20098.8270407,0.00017622,2]
[338612262,1726795840985,-160.0,0.00017627,2]
[338612263,1726795841000,-160.0,0.00017627,2]
[338612264,1726795841013,-160.0,0.00017627,2]
[338612265,1726795841027,-227.254152,0.00017628,2]
[338612266,1726795841041,-199.028727,0.00017628,2]
[338612267,1726795841055,-199.028727,0.00017628,2]
[338612268,1726795841068,-151.0,0.00017628,2]
[338612269,1726795841082,-2993.969316,0.00017628,2]
[338612270,1726795841095,-151.0,0.00017628,2]
[338612271,1726795841109,-2993.969316,0.00017628,2]
[338612272,1726795841123,-151.0,0.00017628,2]
[338612273,1726795841136,-397.966704,0.00017628,2]
[338612274,1726795841150,-151.0,0.00017628,2]
[338612275,1726795841164,-397.966704,0.00017628,2]
[338612276,1726795841177,-151.0,0.00017628,2]
[338612277,1726795841191,-151.0,0.00017628,2]
[338612278,1726795841205,-2512.35338009,0.0001763,2]
[338612279,1726795841219,-2512.35338009,0.0001763,2]
[338612280,1726795841234,-160.0,0.0001763,2]
[338612281,1726795841247,-160.0,0.0001763,2]
[338612282,1726795841260,-151.0,0.00017632,2]
[338612283,1726795841273,-151.0,0.00017632,2]
[338612284,1726795841284,-558.581754,0.00017632,2]
[338612285,1726795841300,-558.581754,0.00017632,2]
[338612286,1726795841313,-558.581754,0.00017632,2]
[338612287,1726795841323,-558.581754,0.00017632,2]
[338612288,1726795841334,-199.028727,0.00017632,2]
[338612289,1726795841343,-199.028727,0.00017632,2]
[338612290,1726795841599,-199.028727,0.00017632,2]
[338612291,1726795841612,-199.028727,0.00017632,2]
[338612292,1726795841622,-504.238085,0.00017632,2]
[338612293,1726795841631,-504.238085,0.00017632,2]
[338612294,1726795841640,-504.238085,0.00017632,2]
[338612295,1726795841649,-504.238085,0.00017632,2]
[338612296,1726795841659,-151.0,0.00017632,2]
[338612297,1726795841668,-151.0,0.00017632,2]
[338612298,1726795841678,-2993.969316,0.00017632,2]
[338612299,1726795841688,-2993.969316,0.00017632,2]
[338612300,1726795841697,-151.0,0.00017632,2]
[338612301,1726795841707,-2993.969316,0.00017632,2]
[338612302,1726795841716,-2993.969316,0.00017632,2]
[338612303,1726795841725,-151.0,0.00017632,2]
[338612304,1726795841735,-151.0,0.00017632,2]
[338612305,1726795841747,-397.966704,0.00017632,2]
[338612306,1726795841757,-397.966704,0.00017632,2]
[338612307,1726795841767,-151.0,0.00017632,2]
[338612308,1726795841777,-151.0,0.00017632,2]
[338612309,1726795841787,-397.966704,0.00017632,2]
[338612310,1726795841798,-397.966704,0.00017632,2]
[338612311,1726795841808,-210.163314,0.00017632,2]
[338612312,1726795841819,-151.0,0.00017639,2]
[338612313,1726795841830,-500.0,0.00017639,2]
[338612314,1726795841841,-370.43834074,0.00017639,2]
[338612315,1726795841850,-500.0,0.00017639,2]
[338612316,1726795841861,-418.82197541,0.00017639,2]
[338612317,1726795841871,-500.0,0.00017639,2]
[338612318,1726795841881,-500.0,0.00017639,2]
[338612319,1726795841891,-500.0,0.00017639,2]
[338612320,1726795841902,-500.0,0.00017639,2]
[338612321,1726795841913,-500.0,0.00017639,2]
[338612322,1726795841923,-302.98623545,0.00017639,2]
[338612323,1726795841934,-500.0,0.00017639,2]
[338612324,1726795841944,-500.0,0.00017639,2]
[338612325,1726795841955,-500.0,0.00017639,2]
[338612326,1726795841966,-500.0,0.00017639,2]
[338612327,1726795841976,-500.0,0.00017639,2]
[338612328,1726795841986,-445.19886833,0.00017639,2]
[338612329,1726795841996,-500.0,0.00017639,2]
[338612330,1726795842006,-500.0,0.00017639,2]
[338612331,1726795842017,-500.0,0.00017639,2]
[338612332,1726795842028,-500.0,0.00017639,2]
[338612333,1726795842041,-288.05877058,0.00017639,2]
[338612334,1726795842052,-500.0,0.00017639,2]
[338612335,1726795842062,-500.0,0.00017639,2]
[338612336,1726795842073,-500.0,0.00017639,2]
[338612337,1726795842084,-500.0,0.00017639,2]
[338612338,1726795842094,-500.0,0.00017639,2]
[338612339,1726795842105,-580.38841207,0.00017639,2]
[338612340,1726795842114,-580.38841207,0.00017639,2]
[338612341,1726795842125,-580.38841207,0.00017639,2]
[338612342,1726795842136,-580.38841207,0.00017639,2]
[338612343,1726795842146,-580.38841207,0.00017639,2]
[338612344,1726795842158,-580.38841207,0.00017639,2]
[338612345,1726795842168,-580.38841207,0.00017639,2]
[338612346,1726795842181,-580.38841207,0.00017639,2]
[338612347,1726795842191,-580.38841207,0.00017639,2]
[338612348,1726795842203,-580.38841207,0.00017639,2]
[338612349,1726795842214,-580.38841207,0.00017639,2]
[338612350,1726795842224,-668.23098255,0.00017639,2]
[338612351,1726795842235,-668.23098255,0.00017639,2]
[338612352,1726795842246,-668.23098255,0.00017639,2]
[338612353,1726795842256,-668.23098255,0.00017639,2]
[338612354,1726795842267,-2512.35338009,0.0001764,2]
[338612355,1726795842278,-151.0,0.0001764,2]
[338612356,1726795842288,-558.581754,0.0001764,2]
[338612357,1726795842298,-558.581754,0.0001764,2]
[338612358,1726795842307,-199.028727,0.0001764,2]
[338612359,1726795842317,-199.028727,0.0001764,2]
[338612360,1726795842326,-504.238085,0.0001764,2]
[338612361,1726795842335,-504.238085,0.0001764,2]
[338612362,1726795842346,-2993.969316,0.0001764,2]
[338612363,1726795842357,-2993.969316,0.0001764,2]
[338612364,1726795842367,-151.0,0.0001764,2]
[338612365,1726795842377,-397.966704,0.0001764,2]
[338612366,1726795842387,-151.0,0.0001764,2]
[338612367,1726795842399,-397.966704,0.0001764,2]
[338612368,1726795842409,-2512.35338009,0.0001764,2]
[338612369,1726795842419,-1020.639585,0.00017641,2]
[338612370,1726795842431,-1020.639585,0.00017641,2]
[338612371,1726795842441,-152.527214,0.00017641,2]
[338612372,1726795842453,-151.0,0.00017641,2]
[338612373,1726795842462,-609.70429,0.00017641,2]
[338612374,1726795842471,-609.70429,0.00017641,2]
[338612375,1726795842482,-554.655782,0.00017641,2]
[338612376,1726795842492,-554.655782,0.00017641,2]
[338612377,1726795842502,-151.0,0.00017641,2]
[338612378,1726795842512,-151.0,0.00017641,2]
[338612379,1726795842523,-151.0,0.00017641,2]
[338612380,1726795842534,-151.0,0.00017641,2]
[338612381,1726795842547,-151.0,0.00017641,2]
[338612382,1726795842558,-151.0,0.00017641,2]
[338612383,1726795842568,-1619.312438,0.00017641,2]
[338612384,1726795842578,-496.101997,0.00017641,2]
[338612385,1726795842588,-1619.312438,0.00017641,2]
[338612386,1726795842597,-496.101997,0.00017641,2]
[338612387,1726795842607,-502.919767,0.00017641,2]
[338612388,1726795842616,-100.6643483,0.00017641,2]
[338612400,1726795843250,-25.71534902,0.00017641,2]
[338612425,1726796061449,349.0,0.000141,2]
[338612431,1726796427217,759.0,0.00023,120]
[338612449,1726796926427,209.62190832,0.000141,2]
[338612464,1726797032199,-300.0,0.0001633,2]
[338612465,1726797032208,-300.0,0.0001633,2]
[338612466,1726797032217,-4470.44630456,0.00016331,2]
[338612473,1726797038407,-360.22953327,0.00016331,2]
[338612492,1726797040199,-20069.32416217,0.00016331,2]
[338612493,1726797040210,-175.779087,0.00016567,2]
[338612494,1726797040220,-501.06857139,0.00016703,2]
[338612495,1726797040231,-500.0,0.00016815,2]
[338612496,1726797040241,-913.53063834,0.00017207,2]
[338612497,1726797040253,-500.0,0.00017315,2]
[338612498,1726797040262,-6280.78896416,0.00017351,2]
[338612499,1726797040272,-3240.011872,0.000174,2]
[338612500,1726797040282,-153.4292237,0.000175,2]
[338612501,1726797040292,-154.0933629,0.000175,2]
[338612502,1726797040302,-739.64379961,0.00017531,2]
[338612503,1726797040313,-672.86116388,0.0001755,2]
[338612504,1726797040323,-500.0,0.00017582,2]
[338612505,1726797040333,-150.112233,0.000176,2]
[338612506,1726797040344,-150.112234,0.000176,2]
[338612507,1726797040353,-150.0,0.000176,2]
[338612508,1726797040364,-150.112233,0.000176,2]
[338612509,1726797040375,-150.112233,0.000176,2]
[338612510,1726797040387,-150.112234,0.000176,2]
[338612511,1726797040397,-302.54644979,0.00017611,2]
[338612512,1726797040407,-407.69119019,0.00017611,2]
[338612513,1726797040419,-500.0,0.00017611,2]
[338612514,1726797040429,-500.0,0.00017611,2]
[338612515,1726797040440,-500.0,0.00017611,2]
[338612516,1726797040451,-262.13651402,0.00017611,2]
[338612517,1726797040462,-500.0,0.00017611,2]
[338612518,1726797040475,-251.34850155,0.00017611,2]
[338612519,1726797040486,-500.0,0.00017611,2]
[338612520,1726797040496,-500.0,0.00017611,2]
[338612521,1726797040506,-500.0,0.00017611,2]
[338612522,1726797040517,-500.0,0.00017611,2]
[338612523,1726797040526,-500.0,0.00017611,2]
[338612524,1726797040537,-341.61794241,0.00017611,2]
[338612525,1726797040546,-160.38649539,0.00017611,2]
[338612526,1726797040557,-9685.04461468,0.00017611,2]
[338612553,1726797043497,-10546.71804213,0.00017611,2]
[338612622,1726797687808,2104.21,0.000141,2]
[338612652,1726798010031,182.3890278,0.00023,120]
[338612693,1726798232475,-276.68111885,0.00016029,2]
[338612695,1726798232487,-23.31888115,0.00016029,2]
[338612697,1726798232496,-300.0,0.00016029,2]
[338612699,1726798232505,-1882.34301588,0.0001603,2]
[338612738,1726798240512,-2000.0,0.0001603,2]
[338612780,1726798243536,-21017.65698412,0.0001603,2]
[338612781,1726798243547,-279.6600353,0.00016558,2]
[338612782,1726798243556,-850.326389,0.0001672,2]
[338612783,1726798243565,-6280.78896416,0.00017296,2]
[338612784,1726798243574,-1251.208,0.00017465,2]
[338612785,1726798243584,-15015.645,0.00017465,2]
[338612786,1726798243594,-151.98523738,0.000175,2]
[338612787,1726798243603,-153.4292237,0.000175,2]
[338612788,1726798243612,-739.64379961,0.00017501,2]
[338612789,1726798243622,-672.86116388,0.00017511,2]
[338612790,1726798243631,-420.0,0.00017524,2]
[338612791,1726798243640,-500.0,0.00017573,2]
[338612792,1726798243650,-500.0,0.00017573,2]
[338612793,1726798243659,-8969.41089175,0.0001759,5]
[338612794,1726798243669,-27380.5439809,0.0001759,2]
[338612795,1726798243678,-79274.3568939,0.0001759,2]
[338612796,1726798243687,-27380.5439809,0.00017591,2]
[338612797,1726798243699,-79274.3568939,0.00017591,2]
[338612798,1726798243709,-500.0,0.00017597,2]
[338612799,1726798243718,-603.75445642,0.00017597,2]
[338612800,1726798243728,-302.54644979,0.00017597,2]
[338612801,1726798243737,-500.0,0.00017597,2]
[338612802,1726798243746,-500.0,0.00017597,2]
[338612803,1726798243755,-500.0,0.00017597,2]
[338612804,1726798243765,-500.0,0.00017597,2]
[338612805,1726798243774,-500.0,0.00017597,2]
[338612806,1726798243783,-500.0,0.00017597,2]
[338612807,1726798243792,-500.0,0.00017597,2]
[338612808,1726798243802,-500.0,0.00017597,2]
[338612809,1726798243812,-407.69119019,0.00017597,2]
[338612810,1726798243822,-151.0,0.00017598,2]
[338612811,1726798243831,-151.0,0.00017598,2]
[338612812,1726798243840,-152.387808,0.00017598,2]
[338612813,1726798243850,-151.0,0.00017598,2]
[338612814,1726798243863,-239.262362,0.00017598,2]
[338612815,1726798243872,-239.262362,0.00017598,2]
[338612816,1726798243881,-353.998909,0.00017598,2]
[338612817,1726798243891,-353.998909,0.00017598,2]
[338612818,1726798243900,-151.0,0.00017598,2]
[338612819,1726798243909,-499.295311,0.00017598,2]
[338612820,1726798243919,-391.347843,0.00017598,2]
[338612821,1726798243929,-499.295311,0.00017598,2]
[338612822,1726798243939,-391.347843,0.00017598,2]
[338612823,1726798243950,-329.182505,0.00017598,2]
[338612824,1726798243959,-329.182505,0.00017598,2]
[338612825,1726798243970,-259.55974016,0.00017598,2]
[338612826,1726798243980,-500.0,0.00017598,2]
[338612827,1726798243990,-500.0,0.00017598,2]
[338612828,1726798244001,-500.0,0.00017598,2]
[338612829,1726798244010,-500.0,0.00017598,2]
[338612830,1726798244019,-271.17530207,0.00017598,2]
[338612831,1726798244030,-500.0,0.00017598,2]
[338612832,1726798244039,-500.0,0.00017598,2]
[338612833,1726798244048,-500.0,0.00017598,2]
[338612834,1726798244058,-500.0,0.00017598,2]
[338612835,1726798244068,-500.0,0.00017598,2]
[338612836,1726798244077,-613.24521744,0.00017598,2]
[338612837,1726798244087,-500.0,0.00017598,2]
[338612838,1726798244097,-363.08762856,0.00017598,2]
[338612839,1726798244106,-500.0,0.00017598,2]
[338612840,1726798244115,-500.0,0.00017598,2]
[338612841,1726798244124,-500.0,0.00017598,2]
[338612842,1726798244134,-500.0,0.00017598,2]
[338612843,1726798244143,-500.0,0.00017598,2]